Cogmind - Beta 9.6 @@@ ROGUE MODE // 2020.07.27 @ 03:11:04 Player: Phillammon Result: Destroyed by Y-45 Defender with Beam Rifle Performance ------------- Evolutions (1) 500 Regions Visited (2) 400 Robots Destroyed (20) 100 Value Destroyed (474) 474 Prototype IDs (0) 0 Alien Tech Used (0) 0 Bonus (0) 0 TOTAL SCORE: 1474 Bonus ------- None Cogmind --------- Core Integrity 0/400 Matter 250/300 Energy 100/100 System Corruption 0% Temperature Cool (9) Movement Core (300) Ox5 Location -9/Materials Parts ------- > --- POWER (1) -------- (None) > --- PROPULSION (3) --- (None) > --- UTILITY (3) ------ Large Storage Unit Utility Shielding > --- WEAPON (2) ------- (None) > --- INVENTORY (10) --- Light Ion Engine Targeting Computer System Shield System Shield System Shield Peak State ------------ > --- POWER ------------ Light Ion Engine > --- PROPULSION ------- Aluminum Leg Aluminum Leg Aluminum Leg > --- UTILITY ---------- Large Storage Unit Sensor Array Utility Shielding > --- WEAPON ----------- Grenade Launcher Hammer > --- INVENTORY -------- Ion Engine Light Ion Engine Light Nuclear Core Targeting Computer System Shield System Shield System Shield Grenade Launcher [Rating: 10] Favorites ----------- Power Ion Engine Engine Ion Engine Power Core Light Nuclear Core Propulsion Aluminum Leg Leg Aluminum Leg Utility Large Storage Unit Device Sensor Array Storage Large Storage Unit Protection Utility Shielding Weapon EM Pulse Gun Energy Gun EM Pulse Gun Ballistic Gun Assault Rifle Launcher Grenade Launcher Impact Weapon Hammer Build | -11 -10 -9 ------- Run | Scr Mat Mat Slots Evolved 2 | . . 2 Power . | . . . Propulsion 1 | . . 1 Utility 1 | . . 1 Weapon . | . . . Parts Attached 19 | . 6 13 Power 3 | . . 3 Engine 2 | . . 2 Core 1 | . . 1 Reactor . | . . . Propulsion 5 | . . 5 Treads . | . . . Leg 5 | . . 5 Wheel . | . . . Hover . | . . . Flight . | . . . Utility 4 | . 3 1 Device 1 | . 1 . Storage 1 | . 1 . Processor . | . . . Hackware . | . . . Protection 2 | . 1 1 Artifact . | . . . Weapon 7 | . 3 4 Energy Gun 2 | . 2 . Energy Cannon . | . . . Ballistic Gun 1 | . . 1 Ballistic Cannon . | . . . Launcher 2 | . . 2 Special Weapon . | . . . Impact Weapon 2 | . 1 1 Slashing Weapon . | . . . Piercing Weapon . | . . . Special Melee Weapon . | . . . Unidentified Prototypes . | . . . Parts Lost 18 | . . 18 Power 4 | . . 4 Propulsion 7 | . . 7 Utility 1 | . . 1 Weapon 6 | . . 6 Highest Loss Streak 11 | . . 11 Average Slot Usage (%) 91 | . 97 85 Engine 11 | . 14 8 Leg 27 | . 28 26 Device 10 | . 10 10 Storage 12 | . 14 11 Protection 5 | . 1 11 Energy Gun 17 | . 26 6 Ballistic Gun 1 | . . 3 Launcher 2 | . . 4 Impact Weapon 1 | . 1 2 Naked Turns . | . . . Heaviest Build 27 | 13 26 27 Greatest Support 30 | 20 20 30 Greatest Overweight (x) 7 | . 1 7 Average Overweight (x) . | . . . Largest Inventory Capacity 10 | 6 10 10 Average Capacity 9 | 6 8 10 Most Carried 10 | 5 10 10 Average Carried 7 | 3 7 7 Final Capacity 10 | 6 10 10 Final Carried 10 | 2 10 5 Class Distribution -------------------- 89% | Mutant 10% | Scavenger-Mutant Dominant Class ---------------- Mutant | -10/Materials Mutant | -9/Materials Resources | -11 -10 -9 ----------- Run | Scr Mat Mat Matter Collected 326 | 190 70 66 Remotely . | . . . Salvage Created 562 | . 241 321 Parts 43 | . 19 24 Haulers Intercepted . | . . . Recyclers Shooed . | . . . Parts Field Recycled . | . . . Retrieved Matter . | . . . Parts Self-Destructed . | . . . Prevented . | . . . Kills | -11 -10 -9 ------- Run | Scr Mat Mat Combat Hostiles Destroyed 15 | . 7 8 Guns 10 | . 7 3 AOE 4 | . . 4 Classes Destroyed 6 | . 2 4 Worker 3 | . . 3 Builder 1 | . . 1 Watcher 1 | . . 1 Swarmer 6 | . 3 3 Grunt 8 | . 4 4 Sentry 1 | . . 1 Best Kill Streak 6 | . 3 6 Combat Bots Only 5 | . 3 5 Max Kills in Single Turn 3 | . 1 3 Gunslinging . | . . . Exploded 2 | . . 2 Melee . | . . . Uniques/NPCs Destroyed . | . . . Combat | -11 -10 -9 -------- Run | Scr Mat Mat Damage Taken 1586 | . 141 1445 Core 411 | . 6 405 Absorbed by Shields . | . . . Core Remaining (%) 98 | 100 97 . Volleys Fired 33 | . 17 16 Largest 2 | . 2 2 Hottest 80 | . 80 80 Shots Fired 60 | . 34 26 Gun 55 | . 34 21 Cannon . | . . . Launcher 5 | . . 5 Special . | . . . Kinetic 7 | . . 7 Thermal . | . . . Explosive 5 | . . 5 Electromagnetic 48 | . 34 14 Robot Hit Streak 7 | . 7 6 Robot Miss Streak 3 | . 3 3 Penetration Max . | . . . Secondary Targets 1 | . . 1 Max Gunslinging Chain 1 | . . 1 Shots Hit Robots 54 | . 22 32 Core Hits 28 | . 10 18 Critical Hits . | . . . Critical Kills . | . . . Critical Parts Destroyed . | . . . Melee Attacks 22 | . 2 20 Impact 22 | . 2 20 Slashing . | . . . Piercing . | . . . Sneak Attacks 1 | . . 1 Combat Hostiles . | . . . Follow-up Attacks . | . . . Damage Inflicted 1305 | . 304 1001 Guns 446 | . 304 142 Cannons . | . . . Explosions 550 | . . 550 Melee 309 | . . 309 Ramming . | . . . Kinetic 39 | . . 39 Thermal 156 | . . 156 Explosive 394 | . . 394 Electromagnetic 407 | . 304 103 Impact 309 | . . 309 Slashing . | . . . Piercing . | . . . Highest Corruption . | . . . Average Corruption . | . . . Corruption Purged . | . . . Overload Shots . | . . . Overflow Damage 27 | . . 27 Projectiles . | . . . Explosions 20 | . . 20 Melee 7 | . . 7 Knockbacks . | . . . Impact . | . . . Kinetic . | . . . Secondary . | . . . Self-Inflicted Damage 108 | . . 108 Shots 3 | . . 3 Rammed . | . . . Targets Rammed . | . . . Kicked . | . . . Crushed . | . . . Highest Temperature 90 | . 90 57 Average Temperature 32 | . 34 28 Received Heat Transfer 534 | . 54 480 Siege Activations . | . . . Robots Corrupted . | . . . Combat Hostiles . | . . . Parts Fried 2 | . . 2 Impact Corruptions 1 | . . 1 Robots Melted . | . . . Combat Hostiles . | . . . Parts Melted . | . . . Heat Transferred 150 | . . 150 Parts Sabotaged . | . . . Parts Stolen . | . . . Parts Stripped . | . . . Power Chain Reactions 1 | . . 1 Missiles Intercepted . | . . . Alert | -11 -10 -9 ------- Run | Scr Mat Mat Peak Influence 303 | . 205 303 Average Influence 157 | . 105 223 Maximum Alert Level 1 | . 1 1 Low Security (%) 61 | 100 86 31 Level 1 38 | . 13 68 Level 2 . | . . . Level 3 . | . . . Level 4 . | . . . Level 5 . | . . . High Security . | . . . Max Security . | . . . Squads Dispatched 4 | . 2 2 Investigation 1 | . 1 . Extermination . | . . . Reinforcement 3 | . 1 2 Assault . | . . . Garrison . | . . . Intercept . | . . . Construction Impeded 1 | . . 1 Haulers Reinforced . | . . . Stealth | -11 -10 -9 --------- Run | Scr Mat Mat Distress Signals 5 | . . 5 Communications Jammed . | . . . Distress Signals . | . . . Times Spotted 29 | . 11 18 Peak Tracking Total 8 | . 4 8 Tactical Retreats 3 | . 1 2 Traps | -11 -10 -9 ------- Run | Scr Mat Mat Traps Triggered . | . . . Indirectly . | . . . Trap Hack Attempts . | . . . Triggered . | . . . Disarmed . | . . . Reprogrammed . | . . . Reused . | . . . Traps Extracted . | . . . Installed . | . . . Triggered . | . . . Machines | -11 -10 -9 ---------- Run | Scr Mat Mat Machines Disabled 6 | . . 6 Max in Single Turn 4 | . . 4 Machines Sabotaged . | . . . Garrisons Compromised . | . . . Overloaded Fab Kills . | . . . Fab Network Shutdowns . | . . . Hacking | -11 -10 -9 --------- Run | Scr Mat Mat Machines Accessed 3 | . 3 . Terminals 2 | . 2 . Fabricators . | . . . Repair Stations . | . . . Recycling Units 1 | . 1 . Scanalyzers . | . . . Garrison Access . | . . . Total Hacks 13 | . 13 . Successful 8 | . 8 . Failed 5 | . 5 . Catastrophic . | . . . Database Lockouts . | . . . Manual 8 | . 8 . Terminals 12 | . 12 . Fabricators . | . . . Repair Stations . | . . . Recycling Units 1 | . 1 . Scanalyzers . | . . . Garrison Access . | . . . Terminal Hacks 3 | . 3 . Terminal Index 1 | . 1 . Hauler Manifests 1 | . 1 . Zone Layout 1 | . 1 . Fabricator Hacks . | . . . Repair Station Hacks . | . . . Recycling Unit Hacks . | . . . Scanalyzer . | . . . Garrison Access Hacks . | . . . Unauthorized Hacks 5 | . 5 . Terminals 4 | . 4 . Assimilate 1 | . 1 . Botnet 2 | . 2 . Operators 1 | . 1 . Fabricators . | . . . Repair Stations . | . . . Recycling Units 1 | . 1 . Tunnel 1 | . 1 . Scanalyzers . | . . . Garrison Access . | . . . Data Cores Recovered . | . . . Used . | . . . Hacking Detections 2 | . 2 . Full Trace Events 1 | . 1 . Feedback Events . | . . . Feedback Blocked . | . . . Robot Schematics Acquired . | . . . Robots Built . | . . . Matter . | . . . Time . | . . . Total Robot Build Rating . | . . . Part Schematics Acquired . | . . . Parts Built . | . . . Matter . | . . . Time . | . . . Total Part Build Rating . | . . . Parts Repaired . | . . . Time . | . . . Parts Recycled . | . . . Recycled Matter . | . . . Retrieved Matter . | . . . Retrieved Components . | . . . Parts Scanalyzed . | . . . Part Schematics Acquired . | . . . Parts Damaged . | . . . Bothacking | -11 -10 -9 ------------ Run | Scr Mat Mat Used RIF Installer . | . . . Robots Hacked . | . . . Non-combat . | . . . Combat . | . . . Robot Hacks Applied . | . . . Relay Couplers Released . | . . . Robots Rewired . | . . . Allies Hacked . | . . . Hacks Repelled . | . . . Allies | -11 -10 -9 -------- Run | Scr Mat Mat Total Allies 1 | . 1 . Largest Group 1 | . 1 1 Highest-Rated Group 10 | . 10 10 Highest-Rated Ally 10 | . 10 10 Total Orders 1 | . . 1 GOTO 1 | . . 1 Ally Attacks . | . . . Total Damage . | . . . Kills . | . . . Allies Corrupted . | . . . Allies Melted . | . . . Intel | -11 -10 -9 ------- Run | Scr Mat Mat Robot Analysis Total . | . . . Derelict Logs Recovered . | . . . Drone Launches . | . . . Drone Recoveries . | . . . Exploration | -11 -10 -9 ------------- Run | Scr Mat Mat Turns Passed 705 | 3 386 316 Spaces Moved 345 | 1 201 143 Core 5 | . . 5 Treads . | . . . Legs 340 | 1 201 138 Wheels . | . . . Hover . | . . . Flight . | . . . Fastest Speed 120 | 120 120 120 Average Speed 136 | 120 137 136 Slowest Speed 400 | 120 150 400 Overloaded Moves . | . . . Propulsion Burnouts . | . . . Robots Hopped . | . . . Cave-ins Triggered . | . . . Exploration Rate (%) 22 | 2 44 22 Regions Visited 2 Branch Regions . Pre-discovered Areas 1 | . 1 . Known Exits Taken . | . . . Unknown Exits Taken 2 | 1 1 . Scrap Searched . | . . . Spaces Dug 1 | . 1 . Terrain Destroyed 72 | . 1 71 Melee 1 | . 1 . Projectile . | . . . AOE 71 | . . 71 Actions | -11 -10 -9 --------- Run | Scr Mat Mat Total 486 | 4 274 208 Wait 46 | . 38 8 Move 343 | . 200 143 Hop . | . . . Pick Up 17 | . 9 8 Fast Attach 1 | . 1 . Attach 14 | . 1 13 Detach . | . . . Swap 4 | . 4 . Drop 6 | 4 2 . Fire 33 | . 17 16 Melee 22 | . 2 20 Ram . | . . . Kick . | . . . Crush . | . . . Escape Stasis . | . . . Rewire . | . . . Trap . | . . . Miscellaneous . | . . . Route ------- -11/Scrapyard -10/Materials -9/Materials History --------- Turn | Location | Event 4 | -11/Scrapyard | Discovered new exit (range 0) 4 | -11/Scrapyard | Entered Materials 301 | -10/Materials | Discovered new exit (range 14) 319 | -10/Materials | Build established: Mutant 390 | -10/Materials | Entered another Materials area 390 | -9/Materials | Accompanied by 1 ally 390 | -9/Materials | Evolved 2 slots: Propulsion x1, Utility x1 528 | -9/Materials | Lost 5 parts (1p2n2w) 681 | -9/Materials | Core integrity fell below 50% 699 | -9/Materials | Core integrity fell below 20% 706 | -9/Materials | Destroyed by Y-45 Defender with Beam Rifle Last Messages --------------- 00686_ Acquired Aluminum Leg. 00687_ U-05 Engineer lays Concrete. 00688_ U-05 Engineer builds a Wall. 00689_ Aluminum Leg destroyed. 00689_ Grenade Launcher destroyed. 00689_ Aluminum Leg destroyed. 00690_ Acquired 11 matter. 00692_ U-05 Engineer lays Concrete. 00695_ Ion Engine destroyed. 00695_ U-05 Engineer builds a Door. 00696_ U-05 Engineer builds a Wall. 00696_ U-05 Engineer lays Concrete. 00698_ U-05 Engineer builds a Wall. 00699_ U-05 Engineer lays Concrete. 00700_ U-05 Engineer builds a Wall. 00700_ U-05 Engineer lays Concrete. 00701_ U-05 Engineer builds a Wall. 00701_ A-02 Transporter destroyed. 00701_ K-01 Serf collects debris. 00704_ U-05 Engineer lays Concrete. Map ----- +----------------------------------------------------+ | ?????????????????????????????????????????????????? | | ?????????????????????????????????????????????????? | | ?????????????????????????????????????????????????? | | ?????????????????????????????????????????????????? | | ?????????????????????????????????????????????????? | | ?????????????????????????????????????????????????? | | ?????????????????????????????????????????????????? | | ?????????????????????????????????????????????????? | | ?????????????????????????????????????????????????? | | ?????????????????????????????????????????????????? | | ?????????????????????????????????????????????????? | | ?????????????????????????????????????????????????? | | ?????????????????????????????????????????????????? | | ?????????????????????????????????????????????????? | | ???????????????????????#######???????????????????? | | ???????????????????????# #???????????????????? | | ???????????????????????#= #???????????????????? | | ???????????????????????# #???????????????????? | | ??????????????????????## "" #???????????????????? | | ??????????????????????# #???????????????????? | | ?????????????????????## !u #???????????????????? | | ?????????########??### ==!u #???????????????????? | | ?????????# """ #### *##u########???????????????? | | ?????????# "T" + =!%Y%k%! ????????? | | ?????????# #### %##!Y*######???????????????? | | ?????????# #??# #=@! #???????????????? | | ?????????# !!#??# # "" #???????????????? | | ???###+###! ! #??# # "Y #???????????????? | | #### ###/####### # "" #???????????????? | | # """ #???????????????? | | + """ #???????????????? | | # """ #???????????????? | | #### ###/####### # #???????????????? | | ???## ##= #??# #########?????????????????? | | ????# ?# """ #??# # ???????????????????? | | ????# ?# """ #??# + ??????????????????????? | | ????# ?# """ #### #?????????????????????????? | | ????# ## / #?????????????????????????? | | ????# ^^## "T" #### #?????????????????????????? | | ????# ^^#########??# #?????????????????????????? | | ????# #??????????# #####?????????????????????? | | ????# #??????????# !#?????????????????????? | | ????# ############ #?????????????????????? | | ????# *! !!#?????????????????????? | | ????# != !!#?????????????????????? | | ????# !!#?????????????????????? | | ##### * #### !!#?????????????????????? | | "" #??# #####?????????????????????? | | #??# #?????????????????????????? | | #??# #?????????????????????????? | +----------------------------------------------------+ Best States ------------- Heat Dissipation 28 Energy Generation 14 Energy Capacity 250 Matter Stores 300 Matter Capacity 300 Sight Range 16 Robot Scan Range 10 Terrain Scan Density 10 Utility Shielding 33 Evasion (%) 40 Item Schematics ----------------- None Robot Schematics ------------------ None Fabricated ------------ Nothing Alien Tech Used ----------------- None Achievements -------------- None Challenges ------------ None Game ------ Seed GatlingSwarmStorm Manual? 0 Play Time 00:12:19 Cumulative 16.1 hours Start 2020.07.26 @ 23:28:38 End 2020.07.27 @ 03:11:04 Sessions 2 Manual Loads 0 Difficulty Rogue Special Mode None Game No. 51 Rogue 51 Adventurer 0 Explorer 0 Win Type - Total 0 Types 0/0/0/0/0/0/0 Lore% 16 Gallery% 23 Achievement% 21 Wizard Run 0 Options --------- ASCII 0 Keyboard 0 Movement Mouse Keybinds 0 Fullscreen 1 Font 18/SmallcapsGlow Map View 76x50 Tactical HUD 1 Map Filters NONE Filters NONE Steam 0 RUN: 1bd6cb6e-f5bc-4048-8c30-143acc05b570